bitfinex-derivatives/quotes_BTCF0:USTF0_20251228
["timestamp","ask_amount","ask_price","bid_price","bid_amount"]
[1766926531454,0.0113865,87893.0,87879.0,0.05696]
[1766926531659,0.0262139,87892.0,87879.0,0.05696]
[1766926531867,0.0113865,87893.0,87879.0,0.05696]
[1766926532066,0.0262139,87892.0,87879.0,0.05696]
[1766926532368,0.02621394,87891.0,87879.0,0.05696]
[1766926532566,0.0113865,87893.0,87879.0,0.05696]
[1766926532867,0.02621394,87892.0,87879.0,0.05696]
[1766926533067,0.02621394,87891.0,87879.0,0.05696]
[1766926533370,0.0113865,87893.0,87879.0,0.05696]
[1766926533569,0.026214,87892.0,87879.0,0.05696]
[1766926533761,0.026214,87891.0,87879.0,0.05696]
[1766926533956,0.0113865,87893.0,87879.0,0.05696]
[1766926534171,0.026214,87892.0,87879.0,0.05696]
[1766926534468,0.0376008,87891.0,87879.0,0.05696]
[1766926534669,0.0113868,87891.0,87879.0,0.05696]
[1766926536372,0.0113874,87887.0,87879.0,0.05696]
[1766926537269,0.0113878,87884.0,87880.0,0.05696]
[1766926537469,0.0113878,87884.0,87881.0,0.05696]
[1766926537670,0.0113878,87884.0,87882.0,0.05696]
[1766926537970,0.0113873,87887.0,87882.0,0.05696]
[1766926539474,0.0113878,87884.0,87880.0,0.05696]
[1766926540162,0.0113878,87884.0,87879.0,0.05696]
[1766926542685,0.0113874,87887.0,87879.0,0.05696]
[1766926542974,0.0113876,87885.0,87879.0,0.05696]
[1766926543679,0.02620437,87884.0,87879.0,0.05696]
[1766926543973,0.0113876,87885.0,87879.0,0.05696]
[1766926544171,0.02620464,87884.0,87879.0,0.05696]
[1766926544377,0.0113876,87885.0,87879.0,0.04387342]
[1766926544574,0.02620296,87884.0,87878.0,0.05696]
[1766926544775,0.0113876,87885.0,87878.0,0.05696]
[1766926544974,0.02620297,87884.0,87878.0,0.05696]
[1766926545276,0.0113876,87885.0,87878.0,0.05696]
[1766926545476,0.02620158,87884.0,87878.0,0.05696]
[1766926545776,0.0113876,87885.0,87878.0,0.05696]
[1766926546968,0.0113872,87888.0,87878.0,0.05696]
[1766926551465,0.0113875,87886.0,87878.0,0.05696]
[1766926551669,0.0113875,87886.0,87875.0,0.0968]
[1766926551670,0.0113875,87886.0,87877.0,0.05696]
[1766926551971,0.0113875,87886.0,87875.0,0.08305938]
[1766926552976,0.0113871,87889.0,87875.0,0.08305938]
[1766926557278,0.1081867,87892.0,87875.0,0.08305938]
[1766926557478,0.01308658,87891.0,87875.0,0.08305938]
[1766926557679,0.02527998,87890.0,87875.0,0.08305938]
[1766926557883,0.02527998,87889.0,87875.0,0.08305938]
[1766926558072,0.1081867,87892.0,87875.0,0.08305938]
[1766926558272,0.02528032,87891.0,87875.0,0.08305938]
[1766926558578,0.02528032,87890.0,87875.0,0.09444818]
[1766926558780,0.01308658,87890.0,87875.0,0.09444818]
[1766926558971,0.0968,87892.0,87875.0,0.09444818]
[1766926559171,0.0252803,87891.0,87875.0,0.09444818]
[1766926559377,0.0252803,87890.0,87875.0,0.09444818]
[1766926559578,0.0252803,87889.0,87875.0,0.09444818]
[1766926559980,0.0968,87892.0,87875.0,0.09444818]
[1766926560167,0.03836739,87891.0,87875.0,0.09444818]
[1766926560372,0.02528081,87890.0,87875.0,0.09444818]
[1766926560681,0.02528081,87890.0,87877.0,0.0113885]
[1766926560881,0.15376,87892.0,87877.0,0.0113885]
[1766926561179,0.03836795,87891.0,87877.0,0.0113885]
[1766926561381,0.02528137,87890.0,87877.0,0.0113885]
[1766926561871,0.15376,87892.0,87877.0,0.0113885]
[1766926561872,0.02528137,87889.0,87877.0,0.0113885]
[1766926562074,0.01308658,87891.0,87877.0,0.0113885]
[1766926562275,0.02528305,87890.0,87877.0,0.0113885]
[1766926562475,0.02528305,87889.0,87877.0,0.0113885]
[1766926562675,0.01308658,87891.0,87877.0,0.0113885]
[1766926562889,0.02528316,87890.0,87877.0,0.0113885]
[1766926563183,0.02528316,87889.0,87877.0,0.0113885]
[1766926563581,0.15376,87892.0,87877.0,0.0113885]
[1766926563784,0.03837101,87891.0,87877.0,0.0113885]
[1766926563983,0.02528443,87890.0,87877.0,0.0113885]
[1766926564284,0.02528443,87889.0,87875.0,0.08305938]
[1766926564481,0.15376,87892.0,87875.0,0.08305938]
[1766926564784,0.01308658,87888.0,87875.0,0.08305938]
[1766926565284,0.15376,87892.0,87875.0,0.08305938]
[1766926565583,0.03837437,87891.0,87875.0,0.08305938]
[1766926565781,0.02528779,87890.0,87875.0,0.08305938]
[1766926565982,0.02528779,87889.0,87875.0,0.08305938]
[1766926566186,0.02528779,87888.0,87875.0,0.08305938]
[1766926566369,0.15376,87892.0,87875.0,0.08305938]
[1766926566573,0.02529018,87891.0,87875.0,0.08305938]
[1766926566773,0.02529018,87890.0,87875.0,0.08305938]
[1766926566975,0.02529018,87889.0,87875.0,0.08305938]
[1766926567175,0.02529018,87888.0,87875.0,0.08305938]
[1766926567376,0.01308658,87888.0,87875.0,0.08305938]
[1766926567582,0.15376,87892.0,87875.0,0.08305938]
[1766926567882,0.03837867,87891.0,87875.0,0.08305938]
[1766926568083,0.02529209,87890.0,87875.0,0.08305938]
[1766926568283,0.02529209,87889.0,87875.0,0.08305938]
[1766926568488,0.02529209,87888.0,87875.0,0.08305938]
[1766926568784,0.0113869,87891.0,87875.0,0.08305938]
[1766926568973,0.02529297,87890.0,87875.0,0.08305938]
[1766926569176,0.02529297,87889.0,87875.0,0.08305938]
[1766926569376,0.02529297,87888.0,87875.0,0.08305938]
[1766926569576,0.01308658,87888.0,87875.0,0.08305938]
[1766926569776,0.0113869,87891.0,87875.0,0.08305938]
[1766926569987,0.02529403,87890.0,87875.0,0.08305938]
[1766926570192,0.02529403,87889.0,87875.0,0.08305938]
[1766926570482,0.02529403,87888.0,87875.0,0.08305938]
[1766926570685,0.01308658,87888.0,87875.0,0.08305938]
[1766926570885,0.0113869,87891.0,87875.0,0.08305938]
[1766926571085,0.02529455,87890.0,87875.0,0.08305938]
[1766926571388,0.02529455,87889.0,87871.0,0.0113893]
[1766926571589,0.02529455,87888.0,87871.0,0.0113893]
[1766926572088,0.0113869,87891.0,87871.0,0.0113893]
[1766926572291,0.03838253,87890.0,87871.0,0.0113893]
[1766926572590,0.03668305,87889.0,87868.0,0.0683498]
[1766926572789,0.02529595,87888.0,87868.0,0.0683498]
[1766926575898,0.02529595,87888.0,87869.0,0.0968]
[1766926580996,0.0113873,87887.0,87869.0,0.0968]
[1766926588501,0.0113873,87887.0,87869.0,0.596799]
[1766926590808,0.011387,87890.0,87870.0,0.0113895]
[1766926591002,0.02539168,87889.0,87870.0,0.0113895]
[1766926591196,0.02539168,87888.0,87870.0,0.0113895]
[1766926591497,0.011387,87890.0,87870.0,0.0113895]
[1766926591696,0.01308658,87888.0,87870.0,0.0113895]
[1766926592304,0.02539167,87887.0,87870.0,0.0113895]
[1766926592497,0.02539167,87886.0,87870.0,0.0113895]
[1766926592704,0.02539167,87885.0,87870.0,0.0113895]
[1766926592898,0.011387,87890.0,87870.0,0.0113895]
[1766926593100,0.02539167,87889.0,87870.0,0.0113895]
[1766926593301,0.02539167,87888.0,87870.0,0.0113895]
[1766926593499,0.02539167,87887.0,87870.0,0.0113895]
[1766926593699,0.02539167,87886.0,87870.0,0.0113895]
[1766926593902,0.011387,87890.0,87870.0,0.0113895]
[1766926593903,0.02539167,87885.0,87870.0,0.0113895]
[1766926594103,0.011387,87890.0,87870.0,0.0113895]
[1766926594305,0.02539169,87889.0,87870.0,0.0113895]
[1766926594601,0.02539169,87888.0,87870.0,0.0113895]
[1766926594802,0.02539169,87887.0,87870.0,0.0113895]
[1766926595004,0.02539169,87886.0,87870.0,0.0113895]
[1766926595304,0.02539169,87885.0,87870.0,0.0113895]
[1766926595504,0.011387,87890.0,87870.0,0.0113895]
[1766926595707,0.15376,87892.0,87870.0,0.0113895]
[1766926595708,0.0113872,87888.0,87870.0,0.0113895]
[1766926596010,0.02539169,87887.0,87869.0,0.596799]
[1766926596305,0.03677919,87886.0,87869.0,0.596799]
[1766926596497,0.02539169,87885.0,87869.0,0.596799]
[1766926596699,0.0113871,87889.0,87869.0,0.596799]
[1766926596899,0.0113874,87887.0,87869.0,0.596799]
[1766926597100,0.02539194,87886.0,87869.0,0.596799]
[1766926597400,0.02539194,87885.0,87869.0,0.596799]
[1766926597602,0.0113874,87887.0,87869.0,0.596799]
[1766926597804,0.0113876,87885.0,87869.0,0.596799]
[1766926598003,0.02536602,87884.0,87869.0,0.596799]
[1766926598203,0.0113879,87883.0,87870.0,0.05696]
[1766926598404,0.02536602,87882.0,87870.0,0.05696]
[1766926598606,0.0113879,87883.0,87870.0,0.05696]
[1766926598905,0.02536141,87882.0,87870.0,0.05696]
[1766926599106,0.0113879,87883.0,87870.0,0.05696]
[1766926599305,0.02535883,87882.0,87870.0,0.05696]
[1766926599512,0.0113875,87886.0,87870.0,0.05696]
[1766926599706,0.02535868,87885.0,87870.0,0.05696]
[1766926600002,0.02535868,87884.0,87870.0,0.05696]
[1766926600199,0.02535868,87883.0,87870.0,0.05696]
[1766926600414,0.02535868,87882.0,87870.0,0.05696]
[1766926600614,0.0113875,87886.0,87870.0,0.05696]
[1766926600814,0.02535671,87885.0,87870.0,0.05696]
[1766926601017,0.02535671,87884.0,87870.0,0.05696]
[1766926601319,0.02535671,87883.0,87870.0,0.05696]
[1766926601614,0.02535671,87882.0,87870.0,0.05696]
[1766926601825,0.02535671,87881.0,87870.0,0.05696]
[1766926602118,0.0113875,87886.0,87870.0,0.05696]
[1766926602303,0.0253548,87885.0,87870.0,0.05696]
[1766926602502,0.0367425,87884.0,87870.0,0.05696]
[1766926602705,0.0253548,87883.0,87870.0,0.05696]
[1766926602903,0.0113877,87884.0,87870.0,0.05696]
[1766926603104,0.02535291,87883.0,87870.0,0.05696]
[1766926603319,0.0113877,87884.0,87870.0,0.05696]
[1766926603512,0.0253513,87883.0,87870.0,0.05696]
[1766926603712,0.0113877,87884.0,87870.0,0.05696]
[1766926603912,0.0253513,87883.0,87870.0,0.05696]
[1766926604114,0.0113877,87884.0,87870.0,0.05696]
[1766926604416,0.0253513,87883.0,87870.0,0.05696]
[1766926604711,0.0113877,87884.0,87870.0,0.05696]
[1766926604914,0.02535003,87883.0,87870.0,0.05696]
[1766926605114,0.0113877,87884.0,87870.0,0.05696]
[1766926605312,0.02535003,87883.0,87870.0,0.05696]
[1766926605514,0.0113877,87884.0,87870.0,0.05696]
[1766926605715,0.02534877,87883.0,87870.0,0.05696]
[1766926605915,0.0113877,87884.0,87870.0,0.05696]
[1766926606117,0.02534877,87883.0,87870.0,0.05696]
[1766926606416,0.0113877,87884.0,87870.0,0.05696]
[1766926606616,0.02534772,87883.0,87870.0,0.05696]
[1766926606820,0.02534772,87882.0,87870.0,0.05696]
[1766926607118,0.0113877,87884.0,87870.0,0.05696]
[1766926607319,0.02564863,87883.0,87870.0,0.05696]
[1766926607521,0.02564863,87882.0,87870.0,0.05696]
[1766926607727,0.0113877,87884.0,87870.0,0.05696]
[1766926608023,0.02564864,87883.0,87870.0,0.05696]
[1766926608226,0.0113877,87884.0,87870.0,0.05696]
[1766926608430,0.02564791,87883.0,87870.0,0.05696]
[1766926608631,0.0113877,87884.0,87870.0,0.05696]
[1766926608833,0.02564791,87883.0,87870.0,0.05696]
[1766926609035,0.0113877,87884.0,87870.0,0.05696]
[1766926609327,0.02564791,87883.0,87870.0,0.05696]
[1766926609525,0.0113877,87884.0,87870.0,0.05696]
[1766926609725,0.02564732,87883.0,87870.0,0.05696]
[1766926609934,0.0113877,87884.0,87870.0,0.05696]
[1766926610125,0.02564732,87883.0,87870.0,0.05696]
[1766926610326,0.0113877,87884.0,87870.0,0.05696]
[1766926610525,0.02564683,87883.0,87870.0,0.05696]
[1766926610826,0.0113877,87884.0,87870.0,0.05696]
[1766926611027,0.02564683,87883.0,87870.0,0.05696]
[1766926611220,0.0113877,87884.0,87870.0,0.05696]
[1766926611427,0.02564646,87883.0,87870.0,0.05696]
[1766926611726,0.0113877,87884.0,87870.0,0.05696]
[1766926611925,0.02564646,87883.0,87870.0,0.05696]
[1766926612127,0.02564662,87882.0,87870.0,0.05696]
[1766926612329,0.0113877,87884.0,87870.0,0.05696]
[1766926612529,0.02564632,87883.0,87870.0,0.05696]
[1766926612737,0.02564632,87882.0,87870.0,0.05696]
[1766926612938,0.0113877,87884.0,87870.0,0.05696]
[1766926613141,0.02564632,87883.0,87870.0,0.05696]
[1766926613335,0.02564632,87882.0,87870.0,0.05696]
[1766926613640,0.0113877,87884.0,87870.0,0.05696]
[1766926613941,0.02564621,87883.0,87870.0,0.05696]
[1766926614139,0.02564621,87882.0,87870.0,0.05696]
[1766926614342,0.0113877,87884.0,87870.0,0.05696]
[1766926614543,0.02564623,87883.0,87870.0,0.05696]
[1766926614741,0.02564623,87882.0,87870.0,0.05696]
[1766926614943,0.0113877,87884.0,87870.0,0.05696]
[1766926615145,0.02564624,87883.0,87870.0,0.05696]
[1766926615345,0.0113877,87884.0,87870.0,0.05696]
[1766926615346,0.02564624,87882.0,87870.0,0.05696]
[1766926615644,0.0113877,87884.0,87870.0,0.05696]
[1766926615845,0.02564641,87883.0,87870.0,0.05696]
[1766926616034,0.00227473,87923.0,87880.0,0.04095151]
[1766926616234,0.0654305,87956.0,87880.0,0.04095151]
[1766926616235,0.0968,87958.0,87902.0,0.0113853]
[1766926616437,0.0968,87957.0,87921.0,0.00017066]
[1766926616743,0.0113795,87948.0,87921.0,0.05725066]
[1766926616950,0.15388,87947.0,87926.0,0.0113822]
[1766926617141,0.0968,87946.0,87928.0,0.00017057]
[1766926621343,0.0113798,87945.0,87928.0,0.00017057]
[1766926621649,0.0113798,87945.0,87920.0,0.0113829]
[1766926622046,0.0113808,87938.0,87912.0,0.05708]
[1766926622249,0.011381,87936.0,87911.0,0.0113841]
[1766926622446,0.09676,87935.0,87911.0,0.0113841]
[1766926622749,0.00017024,87932.0,87915.0,0.00017057]
[1766926627147,0.0113816,87931.0,87915.0,0.00017057]
[1766926628448,0.0113821,87928.0,87915.0,0.00017057]
[1766926628649,0.0113823,87926.0,87915.0,0.00017057]
[1766926628848,0.09676,87925.0,87900.0,0.0113855]
[1766926629757,0.09676,87925.0,87905.0,0.00017057]
[1766926635057,0.09676,87925.0,87907.0,0.0113846]
[1766926638954,0.09676,87925.0,87905.0,0.00017057]
[1766926639264,0.09676,87925.0,87905.0,0.01155547]
[1766926639450,0.09676,87925.0,87906.0,0.01137]
[1766926641262,0.0113826,87924.0,87906.0,0.01137]
[1766926642366,0.09676,87925.0,87906.0,0.04200285]
[1766926643364,0.09676,87925.0,87908.0,0.03063285]
[1766926643758,0.09676,87925.0,87909.0,0.03063285]
[1766926644358,0.09676,87925.0,87911.0,0.03063285]
[1766926645258,0.09676,87925.0,87915.0,0.03063285]
[1766926649276,0.09676,87925.0,87916.0,0.03063285]
[1766926651172,0.09676,87925.0,87915.0,0.03063285]
[1766926651375,0.09676,87925.0,87916.0,0.03063285]
[1766926651675,0.09676,87925.0,87912.0,0.04092808]
[1766926652483,0.09676,87925.0,87913.0,0.04092808]
[1766926653579,0.1081425,87925.0,87913.0,0.04092808]
[1766926654181,0.1081425,87925.0,87907.0,0.06142726]
[1766926654380,0.1081425,87925.0,87906.0,0.07279726]
[1766926658184,0.09676,87925.0,87907.0,0.0113846]
[1766926660490,0.09676,87925.0,87906.0,0.06142726]
[1766926661083,0.09676,87925.0,87907.0,0.06142726]
[1766926661285,0.09676,87925.0,87906.0,0.06142726]
[1766926662287,0.1081424,87925.0,87905.0,0.00017057]
[1766926662693,0.1081424,87925.0,87906.0,0.01137]
[1766926669802,0.0113827,87923.0,87906.0,0.01137]
[1766926670001,0.011383,87921.0,87906.0,0.01137]
[1766926670803,0.0113826,87924.0,87906.0,0.01137]
[1766926675000,0.09676,87925.0,87906.0,0.01137]
[1766926675395,0.0113832,87919.0,87906.0,0.01137]
[1766926675597,0.057,87918.0,87906.0,0.01137]
[1766926677702,0.09676,87917.0,87906.0,0.01137]
[1766926684314,0.09676,87917.0,87903.0,0.0113852]
[1766926692318,0.09676,87917.0,87903.0,0.05234631]
[1766926696115,0.09676,87917.0,87905.0,0.0113849]
[1766926699013,0.09676,87917.0,87902.0,0.0113853]
[1766926700310,0.09676,87917.0,87904.0,0.011385]
[1766926714336,0.09676,87917.0,87907.0,0.0113847]
[1766926717927,0.09676,87917.0,87907.0,0.5113837]
[1766926719139,0.09676,87917.0,87908.0,0.01137]
[1766926726745,0.02397207,87916.0,87908.0,0.01137]
[1766926726942,0.02397207,87915.0,87908.0,0.01137]
[1766926727242,0.057,87914.0,87908.0,0.01137]
[1766926734149,0.057,87914.0,87907.0,0.499999]
[1766926734445,0.057,87914.0,87907.0,0.442999]
[1766926754477,0.057,87914.0,87907.0,0.421999]
[1766926754668,0.057,87914.0,87907.0,0.400999]
[1766926756671,0.057,87914.0,87907.0,0.38877933]
[1766926756871,0.057,87914.0,87907.0,0.22377933]
[1766926757072,0.057,87914.0,87907.0,0.10977933]
[1766926757272,0.057,87914.0,87907.0,0.10377933]
[1766926764085,0.0113841,87912.0,87901.0,0.00017057]
[1766926764285,0.0113843,87910.0,87901.0,0.00017057]
[1766926764480,0.15372,87909.0,87901.0,0.00017057]
[1766926764787,0.0113846,87908.0,87901.0,0.00017057]
[1766926765087,0.02440463,87907.0,87894.0,0.01308429]
[1766926765271,0.1651046,87909.0,87890.0,0.05696]
[1766926765475,0.02439574,87908.0,87888.0,0.0113871]
[1766926765677,0.02439574,87907.0,87888.0,0.0113871]
[1766926765884,0.1651046,87909.0,87888.0,0.0113871]
[1766926766187,0.02439574,87908.0,87892.0,0.00017057]
[1766926766379,0.02439574,87907.0,87892.0,0.00017057]
[1766926766583,0.1651046,87909.0,87892.0,0.00017057]
[1766926766891,0.0243904,87908.0,87892.0,0.00017057]
[1766926767186,0.0243904,87907.0,87892.0,0.00017057]
[1766926767387,0.1651046,87909.0,87892.0,0.00017057]
[1766926767576,0.02438631,87908.0,87892.0,0.00017057]
[1766926767777,0.02438631,87907.0,87892.0,0.00017057]
[1766926767986,0.1651046,87909.0,87892.0,0.00017057]
[1766926768286,0.02438631,87908.0,87892.0,0.00017057]
[1766926768488,0.1651046,87909.0,87892.0,0.00017057]
[1766926768681,0.02438308,87908.0,87892.0,0.00017057]
[1766926768987,0.1651046,87909.0,87892.0,0.00017057]
[1766926769181,0.02438308,87908.0,87892.0,0.00017057]
[1766926769380,0.02438092,87907.0,87892.0,0.00017057]
[1766926769582,0.02438092,87906.0,87892.0,0.00017057]
[1766926769783,0.1651046,87909.0,87892.0,0.00017057]
[1766926770081,0.02438094,87908.0,87892.0,0.00017057]
[1766926770387,0.02437995,87907.0,87892.0,0.00017057]
[1766926770573,0.1651046,87909.0,87892.0,0.00017057]
[1766926775378,0.15372,87909.0,87892.0,0.00017057]
[1766926775692,0.15372,87909.0,87892.0,0.01155717]
[1766926782602,0.02436724,87908.0,87892.0,0.01155717]
[1766926782895,0.15372,87909.0,87892.0,0.01155717]
[1766926783095,0.02436724,87908.0,87892.0,0.01155717]
[1766926783299,0.15372,87909.0,87892.0,0.01155717]
[1766926783490,0.02436834,87908.0,87892.0,0.01155717]
[1766926783689,0.15372,87909.0,87892.0,0.01155717]
[1766926783898,0.02436834,87908.0,87892.0,0.01155717]
[1766926784098,0.15372,87909.0,87892.0,0.01155717]
[1766926784297,0.02436834,87908.0,87892.0,0.01155717]
[1766926784500,0.15372,87909.0,87892.0,0.01155717]
[1766926784700,0.02436977,87908.0,87892.0,0.01155717]
[1766926784901,0.15372,87909.0,87892.0,0.01155717]
[1766926785102,0.02436977,87908.0,87892.0,0.01155717]
[1766926785301,0.15372,87909.0,87892.0,0.01155717]
[1766926785493,0.02437109,87908.0,87892.0,0.01155717]
[1766926785799,0.15372,87909.0,87892.0,0.01155717]
[1766926786000,0.02437109,87908.0,87892.0,0.01155717]
[1766926786200,0.15372,87909.0,87892.0,0.01155717]
[1766926786401,0.02437273,87908.0,87892.0,0.01155717]
[1766926786603,0.15372,87909.0,87892.0,0.00017057]
[1766926786803,0.0244337,87908.0,87892.0,0.00017057]
[1766926787103,0.0244337,87907.0,87892.0,0.00017057]
[1766926787305,0.1651045,87909.0,87892.0,0.00017057]
[1766926787503,0.02443565,87908.0,87892.0,0.00017057]
[1766926787704,0.02443565,87907.0,87892.0,0.00017057]
[1766926787893,0.1651045,87909.0,87892.0,0.00017057]
[1766926788094,0.02443565,87908.0,87892.0,0.00017057]
[1766926788294,0.02443565,87907.0,87892.0,0.00017057]
[1766926788599,0.1651045,87909.0,87892.0,0.00017057]
[1766926788798,0.024438,87908.0,87892.0,0.00017057]
[1766926789098,0.024438,87907.0,87892.0,0.00017057]
[1766926789298,0.1651045,87909.0,87892.0,0.00017057]
[1766926789499,0.02444078,87908.0,87892.0,0.00017057]
[1766926789797,0.02444078,87907.0,87892.0,0.00017057]
[1766926790105,0.1651045,87909.0,87892.0,0.00017057]
[1766926790304,0.02444078,87908.0,87892.0,0.00017057]
[1766926790603,0.02444078,87907.0,87892.0,0.00017057]
[1766926790795,0.02444078,87906.0,87892.0,0.00017057]
[1766926790997,0.1651045,87909.0,87892.0,0.00017057]
[1766926791298,0.02444416,87908.0,87892.0,0.00017057]
[1766926791606,0.02444416,87907.0,87892.0,0.00017057]
[1766926791795,0.02444416,87906.0,87892.0,0.00017057]
[1766926791999,0.1651045,87909.0,87892.0,0.00017057]
[1766926792203,0.02444833,87908.0,87892.0,0.00017057]
[1766926792404,0.02444833,87907.0,87892.0,0.00017057]
[1766926792702,0.02444833,87906.0,87892.0,0.00017057]
[1766926792906,0.02444833,87905.0,87892.0,0.00017057]
[1766926793206,0.05696,87904.0,87892.0,0.00017057]
[1766926799206,0.15372,87904.0,87892.0,0.00017057]
[1766926806617,0.02447508,87903.0,87892.0,0.00017057]
[1766926806916,0.15372,87904.0,87892.0,0.00017057]
[1766926807117,0.02447508,87903.0,87892.0,0.00017057]
[1766926807307,0.15372,87904.0,87892.0,0.00017057]
[1766926807509,0.02447508,87903.0,87892.0,0.00017057]
[1766926807703,0.15372,87904.0,87892.0,0.00017057]
[1766926807918,0.02447508,87903.0,87892.0,0.00017057]
[1766926808116,0.15372,87904.0,87892.0,0.00017057]
[1766926808318,0.02447507,87903.0,87892.0,0.00017057]
[1766926808518,0.05696,87902.0,87892.0,0.00017057]
[1766926810718,0.05696,87902.0,87892.0,0.01155717]
[1766926811913,0.05696,87902.0,87894.0,0.0113864]
[1766926812120,0.05696,87901.0,87894.0,0.0113864]
[1766926812320,0.05696,87900.0,87894.0,0.0113864]
[1766926812523,0.05696,87901.0,87894.0,0.0113864]
[1766926812911,0.00017057,87914.0,87898.0,0.0113858]
[1766926813112,0.01308547,87907.0,87895.0,0.0113862]
[1766926813314,0.08143284,87906.0,87895.0,0.0113862]
[1766926813514,0.02447284,87905.0,87895.0,0.0113862]
[1766926813716,0.05696,87906.0,87895.0,0.0113862]
[1766926813922,0.02447187,87905.0,87895.0,0.0113862]
[1766926814133,0.05696,87906.0,87895.0,0.0113862]
[1766926814334,0.02447043,87905.0,87895.0,0.0113862]
[1766926814535,0.05696,87906.0,87895.0,0.0113862]
[1766926814736,0.02447043,87905.0,87895.0,0.0113862]
[1766926815038,0.05696,87906.0,87895.0,0.0113862]
[1766926815440,0.02446967,87905.0,87898.0,0.0113858]
[1766926815642,0.05696,87906.0,87898.0,0.0113858]
[1766926815843,0.02446955,87905.0,87898.0,0.0113858]
[1766926816040,0.05696,87906.0,87898.0,0.0113858]
[1766926816240,0.05696,87906.0,87898.0,0.0053858]
[1766926817241,0.15372,87906.0,87898.0,0.0053858]
[1766926822447,0.02444762,87905.0,87898.0,0.0053858]
[1766926822747,0.02444762,87904.0,87898.0,0.0053858]
[1766926822945,0.02444762,87903.0,87898.0,0.0053858]
[1766926823145,0.15372,87906.0,87898.0,0.0053858]
[1766926823348,0.02444761,87905.0,87898.0,0.0053858]
[1766926823647,0.02444761,87904.0,87898.0,0.0053858]
[1766926823940,0.02444761,87903.0,87898.0,0.0053858]
[1766926824149,0.15372,87906.0,87898.0,0.0053858]
[1766926824447,0.02444752,87905.0,87893.0,0.01366191]
[1766926824649,0.02444752,87904.0,87893.0,0.01366191]
[1766926824848,0.02444752,87903.0,87893.0,0.01366191]
[1766926825149,0.15372,87906.0,87893.0,0.01366191]
[1766926825340,0.02444747,87905.0,87893.0,0.00227551]
[1766926825541,0.02444747,87904.0,87893.0,0.00227551]
[1766926825745,0.02444747,87903.0,87893.0,0.00227551]
[1766926825949,0.15372,87906.0,87893.0,0.00227551]
[1766926826149,0.02444747,87905.0,87893.0,0.00227551]
[1766926826343,0.02444747,87904.0,87893.0,0.00227551]
[1766926826544,0.02444747,87903.0,87893.0,0.00227551]
[1766926826746,0.15372,87906.0,87893.0,0.00227551]
[1766926827049,0.02444745,87905.0,87893.0,0.00227551]
[1766926827250,0.02444745,87904.0,87893.0,0.00227551]
[1766926827548,0.02444745,87903.0,87893.0,0.00227551]
[1766926827741,0.02444745,87902.0,87893.0,0.00227551]
[1766926827942,0.05696,87901.0,87893.0,0.00227551]
[1766926833446,0.05696,87901.0,87894.0,0.0113864]
[1766926834356,0.05696,87900.0,87894.0,0.0113864]
[1766926836550,0.09676,87906.0,87894.0,0.0113864]
[1766926836857,0.05696,87905.0,87896.0,0.0113861]
[1766926838158,0.09676,87906.0,87898.0,0.0113858]
[1766926838159,0.05696,87904.0,87898.0,0.0113858]
[1766926839165,0.05696,87903.0,87898.0,0.0113858]
[1766926844364,0.05696,87903.0,87894.0,0.0113863]
[1766926855463,0.05696,87903.0,87896.0,0.0113861]
[1766926859872,0.05696,87903.0,87893.0,0.00227551]
[1766926860271,0.05696,87903.0,87896.0,0.0113861]
[1766926861671,0.0113844,87910.0,87896.0,0.0113861]
[1766926861977,0.05696,87909.0,87893.0,0.00227551]
[1766926862565,0.05696,87911.0,87893.0,0.15599551]
[1766926862765,0.02419342,87910.0,87893.0,0.15599551]
[1766926862974,0.05696,87911.0,87893.0,0.15599551]
[1766926863176,0.02419341,87910.0,87900.0,0.0113856]
[1766926863366,0.05696,87911.0,87900.0,0.0113856]
[1766926863675,0.0241906,87910.0,87900.0,0.0113856]
[1766926863867,0.05696,87911.0,87900.0,0.0113856]
[1766926864062,0.02419059,87910.0,87900.0,0.0113856]
[1766926864268,0.05696,87911.0,87900.0,0.0113856]
[1766926864473,0.02418855,87910.0,87900.0,0.0113856]
[1766926864773,0.05696,87911.0,87900.0,0.0113856]
[1766926864970,0.02418855,87910.0,87900.0,0.0113856]
[1766926865174,0.05696,87913.0,87900.0,0.0113856]
[1766926865476,0.0241884,87912.0,87900.0,0.0113856]
[1766926865677,0.0241884,87911.0,87900.0,0.0113856]
[1766926865878,0.05696,87913.0,87893.0,0.15599551]
[1766926866077,0.02418687,87912.0,87893.0,0.15599551]
[1766926866378,0.02418687,87911.0,87901.0,0.0113854]
[1766926866573,0.05696,87913.0,87901.0,0.0113854]
[1766926866881,0.02418543,87912.0,87901.0,0.0113854]
[1766926867080,0.02418543,87911.0,87901.0,0.0113854]
[1766926867280,0.05696,87913.0,87901.0,0.0113854]
[1766926867483,0.02418415,87912.0,87901.0,0.0113854]
[1766926867681,0.02418415,87911.0,87904.0,0.011385]
[1766926867974,0.05696,87913.0,87906.0,0.0113847]
[1766926868181,7e-08,87914.0,87913.0,0.0113839]
[1766926868985,7e-08,87914.0,87893.0,0.15599551]
[1766926869171,7e-08,87914.0,87899.0,0.0113857]
[1766926869974,7e-08,87914.0,87912.0,0.011384]
[1766926882296,7e-08,87914.0,87909.0,0.0113844]
[1766926886581,7e-08,87914.0,87911.0,0.0113841]
[1766926893296,7e-08,87914.0,87903.0,0.15372]
[1766926893498,7e-08,87914.0,87905.0,0.0113849]
[1766926893996,7e-08,87914.0,87907.0,0.0113847]
[1766926894199,7e-08,87914.0,87904.0,0.011385]
[1766926894394,7e-08,87914.0,87906.0,0.0113848]
[1766926904699,7e-08,87914.0,87903.0,0.1651052]
[1766926905904,7e-08,87914.0,87905.0,0.0113849]
[1766926906503,7e-08,87914.0,87906.0,0.09676]
[1766926911593,7e-08,87914.0,87907.0,0.0113847]
[1766926911798,7e-08,87914.0,87908.0,0.05696]
[1766926921019,7e-08,87914.0,87908.0,0.0683445]
[1766926921215,7e-08,87914.0,87910.0,0.0113842]
[1766926946035,7e-08,87914.0,87908.0,0.05696]
[1766926951334,7e-08,87914.0,87909.0,0.0113844]
[1766926962456,7e-08,87914.0,87908.0,0.05696]
[1766926967060,7e-08,87914.0,87908.0,0.0683445]
[1766926972161,7e-08,87914.0,87910.0,0.0113843]
[1766926976067,7e-08,87914.0,87908.0,0.05696]
[1766926976769,7e-08,87914.0,87909.0,0.0113844]
[1766926979058,7e-08,87914.0,87911.0,0.0113841]
[1766926979969,7e-08,87914.0,87908.0,0.0683445]
[1766926983278,7e-08,87914.0,87908.0,0.05696]
[1766926986674,7e-08,87914.0,87909.0,0.0113844]
[1766926996786,7e-08,87914.0,87911.0,0.0113841]
[1766926998085,0.0113813,87934.0,87917.0,0.0113833]